Cogmind - Beta 15 @@@ ROGUE MODE // 2025.06.01 @ 22:42:59 Player: SK CalmBar Result: Destroyed by G-34 Mercenary with Small Laser Performance ------------- Evolutions (1) 500 Regions Visited (3) 600 Robots Destroyed (20) 100 Value Destroyed (653) 653 Prototype IDs (2) 40 Alien Tech Used (0) 0 Bonus (33) 33 TOTAL SCORE: 1926 Bonus ------- Follower Combat Kills 33 Cogmind --------- Core Integrity 0/400 Matter 300/300 Energy 100/100 System Corruption 0% Temperature Cool (6) Movement Walking (120) Location -9/Materials Parts ------- > --- POWER (1) -------- (None) > --- PROPULSION (2) --- Aluminum Leg > --- UTILITY (4) ------ Scrap Suit Signal Interpreter > --- WEAPON (2) ------- (None) > --- INVENTORY (5) ---- Terrain Scanner Peak State ------------ > --- POWER ------------ Light Ion Engine > --- PROPULSION ------- Aluminum Leg > --- UTILITY ---------- Scrap Suit Signal Interpreter > --- WEAPON ----------- (None) > --- INVENTORY -------- Terrain Scanner [Rating: 11] Favorites ----------- Power Ion Engine Engine Ion Engine Propulsion Aluminum Leg Leg Aluminum Leg Hover Unit Hover Unit Flight Unit Flight Unit Utility Signal Interpreter Device Seismic Detector Processor Signal Interpreter Protection Core Shielding Weapon Assault Rifle Energy Gun Medium Laser Ballistic Gun Assault Rifle Ballistic Cannon Improved Light Cannon Launcher Grenade Launcher Build | -11 -10 -10 -9 ------- Run | Yrd Mat Min Mat Slots Evolved 2 | . . . 2 Power . | . . . . Propulsion . | . . . . Utility 2 | . . . 2 Weapon . | . . . . Parts Attached 24 | 6 11 1 6 Power 3 | 1 1 . 1 Engine 3 | 1 1 . 1 Core . | . . . . Reactor . | . . . . Propulsion 6 | 2 3 . 1 Treads . | . . . . Leg 4 | 2 1 . 1 Wheel . | . . . . Hover 1 | . 1 . . Flight 1 | . 1 . . Utility 6 | 1 4 . 1 Device 4 | 1 2 . 1 Storage . | . . . . Processor 1 | . 1 . . Hackware . | . . . . Protection 1 | . 1 . . Artifact . | . . . . Weapon 9 | 2 3 1 3 Energy Gun 2 | 1 1 . . Energy Cannon . | . . . . Ballistic Gun 4 | 1 1 1 1 Ballistic Cannon 2 | . . . 2 Launcher 1 | . 1 . . Special Weapon . | . . . . Impact Weapon . | . . . . Slashing Weapon . | . . . . Piercing Weapon . | . . . . Special Melee Weapon . | . . . . Unidentified Prototypes . | . . . . Parts Lost 8 | . . . 8 Power 2 | . . . 2 Propulsion 1 | . . . 1 Utility 1 | . . . 1 Weapon 4 | . . . 4 Highest Loss Streak 7 | . . . 7 To Critical Strikes . | . . . . Average Backups 4 | 2 4 4 3 Power . | . . 1 . Propulsion . | 1 1 . . Utility 1 | . 1 2 1 Weapon 1 | . 1 1 . Tool/Special . | . . . . Unused Backups 8 | 2 5 1 . Power . | . . . . Propulsion 5 | 2 2 1 . Utility 2 | . 2 . . Weapon 1 | . 1 . . Tool/Special . | . . . . Average Slot Usage (%) 79 | . 87 84 60 Engine 12 | . 13 14 9 Leg 7 | . 15 . . Hover 9 | . 6 14 9 Device 13 | . 14 14 10 Processor 10 | . 7 14 11 Energy Gun 2 | . 4 . . Ballistic Gun 13 | . 14 13 10 Launcher 10 | . 9 14 8 Peak Build Rating 11 | 6 8 10 11 Average Rating 7 | 5 6 8 9 On Entrance 5 | . 6 6 10 Naked Turns . | . . . . Heaviest Build 13 | 8 12 13 13 Greatest Support 20 | 20 20 6 10 Greatest Overweight (x) 2 | . 1 2 2 Average Overweight (x) . | . . 1 1 Largest Inventory Capacity 5 | 5 5 5 5 Average Capacity 5 | 5 5 5 5 Most Carried 5 | 5 5 5 5 Average Carried 4 | 2 4 4 4 Final Capacity 5 | 5 5 5 5 Final Carried 5 | 3 5 5 1 Class Distribution -------------------- 100% | Mutant Dominant Class ---------------- Mutant | -10/Materials Mutant | -10/Mines Mutant | -9/Materials Resources | -11 -10 -10 -9 ----------- Run | Yrd Mat Min Mat Matter Collected 770 | 269 287 54 160 Remotely . | . . . . Salvage Created 654 | 39 295 4 316 Parts 34 | 3 19 3 9 Haulers Intercepted . | . . . . Recyclers Shooed . | . . . . Parts Field Recycled . | . . . . Retrieved Matter . | . . . . Parts Self-Destructed . | . . . . Prevented . | . . . . Kills | -11 -10 -10 -9 ------- Run | Yrd Mat Min Mat Combat Hostiles Destroyed 20 | 1 9 3 7 Guns 15 | 1 7 1 6 Cannons 1 | . . . 1 AOE 4 | . 2 2 . Classes Destroyed 4 | 1 1 . 2 Swarmer 6 | . 3 3 . Grunt 11 | 1 6 . 4 Duelist 1 | . . . 1 Sentry 2 | . . . 2 Best Kill Streak 5 | 1 5 3 4 Combat Bots Only 5 | 1 5 3 4 Max Kills in Single Turn 2 | 1 2 1 1 Gunslinging . | . . . . Exploded 2 | . 2 1 . Melee . | . . . . Uniques/NPCs Destroyed . | . . . . Combat | -11 -10 -10 -9 -------- Run | Yrd Mat Min Mat Hostile Shots Fired 211 | 4 39 11 157 Missed 68 | 2 11 3 52 Hits 143 | 2 28 8 105 Projectile 143 | 2 28 8 105 Critical Strikes 2 | . . . 2 Damage Taken 1703 | 22 350 116 1215 Core 504 | . 85 17 402 Absorbed by Shields . | . . . . Regen/Repaired (Parts) 41 | . 27 . 14 Core Remaining (%) 79 | 100 . 59 . Volleys Fired 71 | 3 29 10 29 Largest 2 | 2 2 1 2 Hottest 85 | 70 85 30 56 Shots Fired 108 | 6 56 10 36 Gun 98 | 6 54 8 30 Cannon 6 | . . . 6 Launcher 4 | . 2 2 . Special . | . . . . Kinetic 76 | 3 29 8 36 Thermal 28 | 3 25 . . Explosive 4 | . 2 2 . Electromagnetic . | . . . . Robot Hit Streak 6 | 4 6 2 5 Robot Miss Streak 3 | 1 3 3 3 Penetration Max . | . . . . Secondary Targets 4 | . 3 . 1 Max Gunslinging Chain 1 | . 1 . 1 Shots Hit Robots 63 | 4 31 4 24 Core Hits 31 | 2 14 4 11 Critical Kills . | . . . . Critical Parts Destroyed . | . . . . Critical Strikes . | . . . . Melee Attacks . | . . . . Impact . | . . . . Slashing . | . . . . Piercing . | . . . . Sneak Attacks . | . . . . Combat Hostiles . | . . . . Follow-up Attacks . | . . . . Damage Inflicted 1250 | 48 491 187 524 Guns 927 | 48 401 55 423 Cannons 100 | . . . 100 Explosions 222 | . 90 132 . Melee . | . . . . Ramming 1 | . . . 1 Kinetic 820 | 24 218 55 523 Thermal 207 | 24 183 . . Explosive 222 | . 90 132 . Electromagnetic . | . . . . Impact . | . . . . Slashing . | . . . . Piercing . | . . . . Highest Corruption . | . . . . Average Corruption . | . . . . Corruption Purged . | . . . . Corruption Blocked . | . . . . Overload Shots . | . . . . Overflow Damage . | . . . . Projectiles . | . . . . Explosions . | . . . . Melee . | . . . . Knockbacks . | . . . . Impact . | . . . . Kinetic . | . . . . Secondary . | . . . . Self-Inflicted Damage 52 | . . 52 . Shots 2 | . . 2 . Rammed 1 | . . . 1 Targets Rammed 3 | . . . 3 Kicked 2 | . . . 2 Crushed . | . . . . Highest Temperature 39 | 39 39 . 27 Average Temperature 16 | 19 19 . 8 Received Heat Transfer 852 | 12 195 . 645 Siege Activations . | . . . . Martial Activations . | . . . . Shielding Activations . | . . . . Robots Disrupted . | . . . . Combat Hostiles . | . . . . Robots Corrupted . | . . . . Combat Hostiles . | . . . . Parts Fried . | . . . . Impact Corruptions . | . . . . Robots Melted . | . . . . Combat Hostiles . | . . . . Parts Melted 1 | . . . 1 Heat Transferred 555 | 74 481 . . Parts Sabotaged . | . . . . Parts Stolen . | . . . . Parts Stripped . | . . . . Power Chain Reactions . | . . . . Alert | -11 -10 -10 -9 ------- Run | Yrd Mat Min Mat Maximum Alert Level . | . . . . Low Security (%) 100 | 100 100 100 100 Level 1 . | . . . . Level 2 . | . . . . Level 3 . | . . . . Level 4 . | . . . . Level 5 . | . . . . High Security . | . . . . Max Security . | . . . . Peak Influence 115 | 20 115 100 55 Initial . | . . . . Average 16 | . 24 17 14 Influence Increases 696 | 20 300 100 276 Destroy 0b10 Robot/C 420 | 20 180 60 160 Destroy Leader 110 | . 40 10 60 Allied During Kill 8 | . . . 8 Successful Hack 25 | . 25 . . Disable Machine 45 | . 15 15 15 Destroy Structure 28 | . 10 15 3 Lose Combat Pursuer 60 | . 30 . 30 Influence Decreases 669 | 20 300 100 249 Time Decay 589 | 20 300 100 169 Lost Part 80 | . . . 80 Squads Dispatched 2 | . . . 2 Investigation 2 | . . . 2 Extermination . | . . . . Reinforcement . | . . . . Assault . | . . . . Garrison . | . . . . Intercept . | . . . . Searches Triggered . | . . . . Construction Impeded . | . . . . Haulers Reinforced . | . . . . Active Scanning Responses . | . . . . Cargo Convoy Interrupts . | . . . . Stealth | -11 -10 -10 -9 --------- Run | Yrd Mat Min Mat Distress Signals . | . . . . Communications Jammed . | . . . . Distress Signals . | . . . . Times Spotted 41 | 1 20 2 18 Peak Tracking Total 11 | 1 5 1 11 Tactical Retreats 2 | . 1 . 1 Traps | -11 -10 -10 -9 ------- Run | Yrd Mat Min Mat Traps Triggered 2 | . 1 . 1 Indirectly . | . . . . Trap Hack Attempts . | . . . . Triggered . | . . . . Disarmed . | . . . . Reprogrammed . | . . . . Reused . | . . . . Traps Extracted . | . . . . Installed . | . . . . Triggered . | . . . . Machines | -11 -10 -10 -9 ---------- Run | Yrd Mat Min Mat Machines Disabled 3 | . 1 1 1 Max in Single Turn 1 | . 1 1 1 Machines Repaired . | . . . . Machines Dismantled . | . . . . Machines Sabotaged . | . . . . Overloaded Fab Kills . | . . . . Hacking | -11 -10 -10 -9 --------- Run | Yrd Mat Min Mat Machines Accessed 8 | . 6 . 2 Terminals 6 | . 5 . 1 Fabricators . | . . . . Repair Stations 2 | . 1 . 1 Recycling Units . | . . . . Scanalyzers . | . . . . Garrison Access . | . . . . Total Hacks 32 | . 27 . 5 Successful 21 | . 19 . 2 Failed 10 | . 7 . 3 Catastrophic . | . . . . Database Lockouts 1 | . 1 . . Manual . | . . . . Terminals 26 | . 23 . 3 Fabricators . | . . . . Repair Stations 6 | . 4 . 2 Recycling Units . | . . . . Scanalyzers . | . . . . Garrison Access . | . . . . Terminal Hacks 17 | . 17 . . Record 14 | . 14 . . Prototype ID Bank 1 | . 1 . . Investigation Status 1 | . 1 . . Hauler Manifests 1 | . 1 . . Fabricator Hacks . | . . . . Repair Station Hacks 4 | . 2 . 2 Scan Component 2 | . 1 . 1 Repair 2 | . 1 . 1 Recycling Unit Hacks . | . . . . Scanalyzer . | . . . . Garrison Access Hacks . | . . . . Unauthorized Hacks . | . . . . Terminals . | . . . . Fabricators . | . . . . Repair Stations . | . . . . Recycling Units . | . . . . Scanalyzers . | . . . . Garrison Access . | . . . . Data Cores Recovered . | . . . . Used . | . . . . Hacking Detections 6 | . 4 . 2 Full Trace Events 1 | . . . 1 Feedback Events . | . . . . Feedback Blocked . | . . . . Robot Schematics Acquired . | . . . . Robots Built . | . . . . Authchips . | . . . . Time . | . . . . Total Robot Build Rating . | . . . . Part Schematics Acquired . | . . . . Parts Built . | . . . . Authchips . | . . . . Time . | . . . . Total Part Build Rating . | . . . . Parts Repaired 2 | . 1 . 1 Time 52 | . 26 . 26 Parts Recycled . | . . . . Recycled Matter . | . . . . Retrieved Matter . | . . . . Retrieved Components . | . . . . Parts Scanalyzed . | . . . . Part Schematics Acquired . | . . . . Parts Damaged . | . . . . Bothacking | -11 -10 -10 -9 ------------ Run | Yrd Mat Min Mat Used RIF Installer . | . . . . Robots Hacked . | . . . . Non-combat . | . . . . Combat . | . . . . Robot Hacks Applied . | . . . . Relay Couplers Released . | . . . . Fabnet Peak Effective % . | . . . . Robots Rewired . | . . . . Allies Hacked . | . . . . Hacks Repelled . | . . . . Allies | -11 -10 -10 -9 -------- Run | Yrd Mat Min Mat Total Allies 2 | . . 2 . Largest Group 2 | . . 2 2 Highest-Rated Group 38 | . . 38 38 Highest-Rated Ally 31 | . . 31 31 Total Orders . | . . . . Ally Attacks 7 | . . . 7 Total Damage 63 | . . . 63 Kills 1 | . . . 1 Allies Corrupted . | . . . . Allies Melted . | . . . . Intel | -11 -10 -10 -9 ------- Run | Yrd Mat Min Mat Active Infowar (turns) 1815 | . 629 594 592 Terrain 195 | . 195 . . Seismic 1620 | . 434 594 592 Robot Analysis Total . | . . . . Derelict Logs Recovered 1 | . . 1 . Drone Launches . | . . . . Drone Recoveries . | . . . . Exploration | -11 -10 -10 -9 ------------- Run | Yrd Mat Min Mat Turns Passed 2948 | 558 1160 594 636 Spaces Moved 1753 | 208 833 395 317 Core 35 | 32 . . 3 Treads . | . . . . Legs 595 | 176 399 . 20 Wheels . | . . . . Hover 1123 | . 434 395 294 Flight . | . . . . Fastest Speed 50 | 50 60 120 50 Average Speed 131 | 109 119 144 162 Slowest Speed 180 | 120 120 180 180 Overloaded Moves . | . . . . Propulsion Burnouts . | . . . . Robots Hopped . | . . . . Potential Cave-ins . | . . . . Cave-ins Triggered . | . . . . Exploration Rate (%) 51 | 14 87 80 25 Regions Visited 3 Branch Regions 1 Pre-discovered Areas . | . . . . Known Exits Taken 2 | . 1 1 . Unknown Exits Taken 1 | 1 . . . Scrap Searched 3 | . . 3 . Spaces Dug . | . . . . Terrain Destroyed 28 | . 10 15 3 Melee . | . . . . Projectile 3 | . . . 3 AOE 25 | . 10 15 . Terrain Rammed . | . . . . Walls Destroyed . | . . . . Machines Disabled . | . . . . Actions | -11 -10 -10 -9 --------- Run | Yrd Mat Min Mat Total 2285 | 535 941 409 400 Wait 381 | 306 35 . 40 Move 1750 | 207 832 394 317 Hop . | . . . . Pick Up 29 | 11 15 1 2 Fast Attach 7 | . 4 1 2 Attach 14 | 6 3 . 5 Detach 1 | . . . 1 Swap 9 | . 9 . . Drop 20 | 2 14 3 1 Fire 71 | 3 29 10 29 Melee . | . . . . Ram 1 | . . . 1 Kick 2 | . . . 2 Crush . | . . . . Escape Stasis . | . . . . Rewire . | . . . . Trap . | . . . . Miscellaneous . | . . . . Route ------- -11/Scrapyard -10/Materials (discovered 4 exits: *Mat x3 / *Min) -10/Mines (discovered 2 exits: *Mat x2) -9/Materials (discovered 1 exit: [*Mat]) History --------- Turn | Location | Event 2 | -11/Scrapyard | Met Revision 17 70 | -11/Scrapyard | Discovered new exit (range 8) 559 | -11/Scrapyard | Entered Materials 560 | -10/Materials | Build established: Mutant 705 | -10/Materials | Repaired Lgt. Ion Engine 989 | -10/Materials | Discovered new exit (range 12) 1092 | -10/Materials | Discovered new exit (range 15) 1282 | -10/Materials | Discovered new exit (range 7) 1334 | -10/Materials | Identified exit to Mines 1358 | -10/Materials | Central database locked down 1423 | -10/Materials | Discovered new exit (range 4) 1425 | -10/Materials | Identified exit to Materials 1719 | -10/Materials | Entered Mines 1881 | -10/Mines | Found a Scrap Suit stashed away for nefarious purposes 1885 | -10/Mines | Found Scrap Suit 2017 | -10/Mines | A weapon hastily lodged in a ceiling crevice suddenly fell to the ground 2182 | -10/Mines | Discovered exit to Materials (range 10) 2307 | -10/Mines | Assembled infested the area 2312 | -10/Mines | Assisted by a Guerilla fighting off Assembled 2313 | -10/Mines | Entered Materials 2313 | -9/Materials | Accompanied by 2 allies 2313 | -9/Materials | Evolved 2 slots: Utility x2 2321 | -9/Materials | Led the pair of lost Derelicts to an unsafe place 2433 | -9/Materials | Repaired Hover Unit 2867 | -9/Materials | Discovered new exit (range 13) 2908 | -9/Materials | Core integrity fell below 50% 2918 | -9/Materials | Core integrity fell below 20% 2949 | -9/Materials | Destroyed by G-34 Mercenary with Small Laser Last Messages --------------- R-06 Scavenger collects Heat Sink. Acquired Aluminum Leg. K-01 Serf collects debris. R-06 Scavenger collects Heat Sink. K-01 Serf collects debris. R-06 Scavenger collects Heat Sink. R-06 Scavenger destroyed. K-01 Serf collects debris. R-06 Scavenger collects Lgt. Cannon. K-01 Serf collects debris. Lgt. Ion Engine destroyed. K-01 Serf collects debris. R-06 Scavenger collects Heat Sink. Acquired 5 matter. K-01 Serf collects debris. Acquired 38 matter. K-01 Serf collects debris. Kicked K-01 Serf. R-06 Scavenger collects Lgt. Ion Engine. [Achievement: First Step to Greatness] Map ----- +----------------------------------------------------+ | ????????????????????????????????????? | | ??????????? ???????????????????????? | | ??????????? ???????????????????????? | | ??????????? ???????????????????????? | | ??????????# ###????????????????????? | | ??????????# ?????????????????????? | | ??????????# ?????????????????????? | | ??????????# ?????????????????????? | | ??????????+ #?????????????????????? | | ??????????# #?????????????????????? | | ??????????# a#????????????????????## | | ??????????#r ########?????######### | | ???######## # #?????# ## | | ???# !%# # """ #?????# ## | | ???# T %*# # """ #?????#! ## | | ???# ! %g% # """ #?????# ## | | ???# %*#ggg# #?????# ##% | | ???# %%# # =????????? ## | | ???# # ###+#############+### | | ???######## | | ??????????# | | ??????????# | | ??????????+ #####+####+########## | | ??????????# #?? ???# ?????????## | | ??????????# #? ????# ??????????# | | ??????????# @ # ?????# ??????????# | | ??????????# #!]??????#???????????# | | ??????????# #!???????????????????# | | ??????????# #????????????????????+ | | ??????????+ #????????????????????# | | ??????????# #????????????????????## | | ??????????# < #?????????????????????? | | ??????????# #?????????????????????? | | ??????????#####?????????????????????? | | ????????????????????????????????????? | | ????????????????????????????????????? | | ????????????????????????????????????? | | ????????????????????????????????????? | | ????????????????????????????????????? | | ????????????????????????????????????? | | ????????????????????????????????????? | | ????????????????????????????????????? | | ????????????????????????????????????? | | ????????????????????????????????????? | | ????????????????????????????????????? | | ????????????????????????????????????? | | ????????????????????????????????????? | | ????????????????????????????????????? | | ????????????????????????????????????? | | ????????????????????????????????????? | +----------------------------------------------------+ Best States ------------- Heat Dissipation 35 Energy Generation 10 Energy Capacity 250 Matter Stores 300 Matter Capacity 300 Sight Range 16 Terrain Scan Range 14 Terrain Scan Density 10 Core Shielding 20 Evasion (%) 55 Item Schematics ----------------- None Robot Schematics ------------------ None Fabricated ------------ Nothing Repaired ---------- Lgt. Ion Engine | 32% | -10/Materials Hover Unit | 53% | -9/Materials Alien Tech Used ----------------- None Achievements -------------- First Step to Greatness Librarian One Hack Too Far Part-time Mechanic Shopping List Challenges ------------ None Game ------ Seed DirtyShrapnelStick Manual? 0 Play Time 00:44:22 Cumulative 0.7 hours Start 2025.06.01 @ 21:52:29 End 2025.06.01 @ 22:42:59 Sessions 1 Manual Loads 0 Difficulty Rogue Special Mode None Game No. 1 Rogue 1 Adventurer 0 Explorer 0 Win Type - Total 0 Types 0/0/0/0/0/0/0/0/0/0 Lore% 0 Gallery% 1 Achievement% 1 Wizard Run 0 Options --------- Layout 1 ASCII 0 Keyboard 0 Movement Mouse Keybinds 0 Fullscreen 1 Font 32/SmallcapsGlow Map View 50x35 Zoom Use 0% Tactical HUD 0 Map Filters NONE Filters NONE Steam 1 RUN: eb5c47bd-3c34-4844-83a8-5a04a9754417